lending/lending_fUSD_20241120
["ID","MTS","AMOUNT","RATE_DAILY","PERIOD"]
[342801516,1732143090058,-500.0,0.0005589,120]
[342801517,1732143090068,-500.0,0.0005589,120]
[342801518,1732143090077,-500.0,0.0005589,120]
[342801519,1732143090086,-500.0,0.0005589,120]
[342801520,1732143090096,-500.0,0.0005589,120]
[342801521,1732143090106,-3018.97,0.0005589,120]
[342801522,1732143090116,-500.0,0.0005589,120]
[342801523,1732143090126,-1221.56,0.0005589,120]
[342801524,1732143090135,-500.0,0.0005589,120]
[342801525,1732143090145,-949.33,0.0005589,120]
[342801526,1732143090155,-500.0,0.0005589,120]
[342801527,1732143090166,-500.0,0.0005589,120]
[342801528,1732143090177,-500.0,0.0005589,120]
[342801529,1732143090187,-500.0,0.0005589,120]
[342801530,1732143090198,-512.47,0.0005589,120]
[342801531,1732143090207,-500.0,0.0005589,120]
[342801532,1732143090218,-975.73,0.0005589,120]
[342801533,1732143090229,-500.0,0.0005589,120]
[342801534,1732143090238,-1680.87,0.0005589,120]
[342801535,1732143090249,-500.0,0.0005589,120]
[342801536,1732143090259,-2068.97,0.0005589,120]
[342801537,1732143090269,-509.92,0.0005589,120]
[342801538,1732143090279,-500.0,0.0005589,120]
[342801539,1732143090289,-500.0,0.0005589,120]
[342801540,1732143090300,-2386.08,0.0005589,120]
[342801541,1732143090310,-850.0,0.0005589,120]
[342801542,1732143090319,-2587.78,0.0005589,120]
[342801543,1732143090328,-1481.97,0.0005589,120]
[342801544,1732143090338,-500.0,0.0005589,120]
[342801545,1732143090347,-500.0,0.0005589,120]
[342801546,1732143090356,-1478.74,0.0005589,120]
[342801547,1732143090365,-500.0,0.0005589,120]
[342801548,1732143090374,-500.0,0.0005589,120]
[342801549,1732143090383,-580.13,0.0005589,120]
[342801550,1732143090394,-500.0,0.0005589,120]
[342801551,1732143090404,-500.0,0.0005589,120]
[342801552,1732143090414,-500.0,0.0005589,120]
[342801553,1732143090428,-500.0,0.0005589,120]
[342801554,1732143090438,-1753.89,0.0005589,120]
[342801555,1732143090446,-500.0,0.0005589,120]
[342801556,1732143090456,-500.0,0.0005589,120]
[342801557,1732143090466,-816.51,0.0005589,120]
[342801558,1732143090475,-2245.37,0.0005589,120]
[342801559,1732143090484,-10880.09,0.0005589,120]
[342801560,1732143090494,-500.0,0.0005589,120]
[342801561,1732143090504,-500.0,0.0005589,120]
[342801562,1732143090514,-500.0,0.0005589,120]
[342801563,1732143090523,-3622.31,0.0005589,120]
[342801564,1732143090534,-502.6,0.0005589,120]
[342801565,1732143090544,-500.0,0.0005589,120]
[342801566,1732143090553,-500.0,0.0005589,120]
[342801567,1732143090562,-247.08731176,0.0005589,120]
[342801568,1732143090571,-500.0,0.0005589,120]
[342801569,1732143090581,-1317.84,0.0005589,120]
[342801570,1732143090592,-1518.89,0.0005589,90]
[342801571,1732143090601,-1643.31,0.0005589,120]
[342801572,1732143090610,-500.0,0.0005589,120]
[342801573,1732143090619,-500.0,0.0005589,120]
[342801574,1732143090629,-1298.63,0.0005589,120]
[342801575,1732143090639,-943.47,0.0005589,120]
[342801576,1732143090649,-500.0,0.0005589,120]
[342801577,1732143090659,-1649.32,0.0005589,120]
[342801578,1732143090670,-500.0,0.0005589,120]
[342801579,1732143090679,-550.87,0.0005589,120]
[342801580,1732143090688,-5640.48,0.0005589,120]
[342801581,1732143090698,-2158.9,0.0005589,120]
[342801582,1732143090708,-500.0,0.0005589,120]
[342801583,1732143090718,-500.0,0.0005589,120]
[342801584,1732143090728,-1165.26,0.0005589,120]
[342801585,1732143090738,-500.0,0.0005589,120]
[342801586,1732143090748,-1244.51,0.0005589,120]
[342801587,1732143090758,-500.0,0.0005589,120]
[342801588,1732143090769,-250.0,0.0005589,120]
[342801589,1732143090781,-500.0,0.0005589,120]
[342801590,1732143090791,-9870.91,0.0005589,120]
[342801591,1732143090801,-1110.14,0.0005589,120]
[342801592,1732143090811,-500.0,0.0005589,120]
[342801593,1732143090821,-986.78,0.0005589,120]
[342801594,1732143090832,-567.02,0.0005589,120]
[342801595,1732143090843,-498.67035719,0.0005589,120]
[342801596,1732143090854,-500.0,0.0005589,120]
[342801597,1732143090865,-651.9,0.0005589,120]
[342801598,1732143090874,-500.0,0.0005589,120]
[342801599,1732143090887,-500.0,0.0005589,120]
[342801600,1732143090897,-500.0,0.0005589,120]
[342801601,1732143090909,-3368.96,0.0005589,120]
[342801602,1732143090921,-500.0,0.0005589,120]
[342801603,1732143090931,-6243.58,0.0005589,120]
[342801604,1732143090941,-500.0,0.0005589,120]
[342801605,1732143090952,-1221.81,0.0005589,120]
[342801606,1732143090963,-1021.75,0.0005589,120]
[342801607,1732143090973,-1378.96,0.0005589,120]
[342801608,1732143090984,-500.0,0.0005589,120]
[342801609,1732143090994,-261.62430443,0.0005589,120]
[342801610,1732143091004,-500.0,0.0005589,120]
[342801611,1732143091014,-1402.48,0.0005589,120]
[342801612,1732143091024,-1098.99,0.0005589,7]
[342801613,1732143091033,-2324.89,0.0005589,120]
[342801614,1732143091043,-500.0,0.0005589,120]
[342801615,1732143091052,-500.0,0.0005589,120]
[342801616,1732143091061,-3357.52,0.0005589,120]
[342801617,1732143091070,-500.0,0.0005589,120]
[342801618,1732143091080,-1503.83,0.0005589,120]
[342801619,1732143091090,-631.52,0.0005589,120]
[342801620,1732143091100,-500.0,0.0005589,120]
[342801621,1732143091109,-610.46,0.0005589,120]
[342801622,1732143091119,-517.12800497,0.0005589,120]
[342801623,1732143091128,-4485.14,0.0005589,120]
[342801624,1732143091139,-500.0,0.0005589,120]
[342801625,1732143091148,-676.3,0.0005589,120]
[342801626,1732143091157,-1449.22,0.0005589,120]
[342801627,1732143091169,-802.14,0.0005589,120]
[342801628,1732143091178,-1005.77,0.0005589,120]
[342801629,1732143091188,-500.0,0.0005589,120]
[342801630,1732143091198,-62267.29,0.0005589,5]
[342801631,1732143091207,-1000.0,0.0005589,120]
[342801632,1732143091217,-500.0,0.0005589,120]
[342801633,1732143091226,-500.0,0.0005589,120]
[342801634,1732143091237,-500.0,0.0005589,120]
[342801635,1732143091246,-500.0,0.0005589,120]
[342801636,1732143091257,-500.0,0.0005589,120]
[342801637,1732143091267,-1200.11,0.0005589,120]
[342801638,1732143091277,-500.0,0.0005589,120]
[342801639,1732143091288,-4633.73,0.0005589,120]
[342801640,1732143091297,-1462.06,0.0005589,120]
[342801641,1732143091308,-1071.61,0.0005589,120]
[342801642,1732143091318,-1246.53,0.0005589,120]
[342801643,1732143091327,-500.0,0.0005589,120]
[342801644,1732143091336,-665.76,0.0005589,120]
[342801645,1732143091346,-500.0,0.0005589,120]
[342801646,1732143091357,-1619.4,0.0005589,120]
[342801647,1732143091367,-534.16,0.0005589,120]
[342801648,1732143091377,-4155.63,0.0005589,120]
[342801649,1732143091387,-500.0,0.0005589,120]
[342801650,1732143091398,-500.0,0.0005589,120]
[342801651,1732143091407,-500.0,0.0005589,120]
[342801652,1732143091419,-716.03,0.0005589,120]
[342801653,1732143091429,-710.7,0.0005589,120]
[342801654,1732143091439,-1328.15,0.0005589,120]
[342801655,1732143091449,-3842.23,0.0005589,120]
[342801656,1732143091458,-1770.4,0.0005589,120]
[342801657,1732143091468,-1828.16,0.0005589,120]
[342801658,1732143091478,-734.2,0.0005589,120]
[342801659,1732143091488,-500.0,0.0005589,120]
[342801660,1732143091497,-500.0,0.0005589,120]
[342801661,1732143091507,-4113.57,0.0005589,120]
[342801662,1732143091517,-500.0,0.0005589,120]
[342801663,1732143091527,-3361.09,0.0005589,120]
[342801664,1732143091538,-2336.41,0.0005589,120]
[342801665,1732143091548,-914.26,0.0005589,120]
[342801666,1732143091558,-1225.66,0.0005589,120]
[342801667,1732143091568,-2227.59,0.0005589,120]
[342801668,1732143091578,-1199.34,0.0005589,120]
[342801669,1732143091588,-818.4,0.0005589,120]
[342801670,1732143091599,-500.0,0.0005589,120]
[342801671,1732143091608,-500.0,0.0005589,120]
[342801672,1732143091618,-4656.57,0.0005589,120]
[342801673,1732143091627,-945.67,0.0005589,120]
[342801674,1732143091637,-500.0,0.0005589,120]
[342801675,1732143091647,-656.2,0.0005589,120]
[342801676,1732143091657,-1601.15,0.0005589,120]
[342801677,1732143091668,-2590.51,0.0005589,120]
[342801678,1732143091677,-500.0,0.0005589,120]
[342801679,1732143091687,-609.85,0.0005589,120]
[342801680,1732143091697,-500.0,0.0005589,120]
[342801681,1732143091706,-1087.48,0.0005589,120]
[342801682,1732143091716,-500.0,0.0005589,120]
[342801683,1732143091725,-617.4,0.0005589,120]
[342801684,1732143091734,-500.0,0.0005589,120]
[342801685,1732143091744,-530.21,0.0005589,120]
[342801686,1732143091753,-1021.22,0.0005589,120]
[342801687,1732143091763,-500.0,0.0005589,120]
[342801688,1732143091772,-4078.12,0.0005589,120]
[342801689,1732143091782,-500.0,0.0005589,120]
[342801690,1732143091791,-1271.08,0.0005589,120]
[342801691,1732143091801,-500.0,0.0005589,120]
[342801692,1732143091811,-630.13,0.0005589,120]
[342801693,1732143091821,-1053.42,0.0005589,120]
[342801694,1732143091830,-3054.48,0.0005589,120]
[342801695,1732143091841,-868.75,0.0005589,120]
[342801696,1732143091851,-10737.37,0.0005589,21]
[342801697,1732143091861,-772.0,0.0005589,120]
[342801698,1732143091872,-1615.7,0.0005589,120]
[342801699,1732143091883,-500.0,0.0005589,120]
[342801700,1732143091894,-790.82,0.0005589,120]
[342801701,1732143091904,-500.0,0.0005589,120]
[342801702,1732143091913,-500.0,0.0005589,120]
[342801703,1732143091923,-500.0,0.0005589,120]
[342801704,1732143091933,-500.0,0.0005589,120]
[342801705,1732143091943,-500.0,0.0005589,120]
[342801706,1732143091953,-500.0,0.0005589,120]
[342801707,1732143091966,-500.0,0.0005589,120]
[342801708,1732143091976,-2780.77,0.0005589,120]
[342801709,1732143091985,-500.0,0.0005589,120]
[342801710,1732143091995,-3170.06,0.0005589,120]
[342801711,1732143092005,-530.51,0.0005589,120]
[342801712,1732143092015,-500.0,0.0005589,120]
[342801713,1732143092025,-814.28,0.0005589,120]
[342801714,1732143092034,-500.0,0.0005589,120]
[342801715,1732143092044,-500.0,0.0005589,120]
[342801716,1732143092054,-500.0,0.0005589,120]
[342801717,1732143092064,-4610.65,0.0005589,120]
[342801718,1732143092073,-1053.94,0.0005589,120]
[342801719,1732143092082,-832.21,0.0005589,120]
[342801720,1732143092092,-559.12,0.0005589,120]
[342801721,1732143092102,-500.0,0.0005589,120]
[342801722,1732143092113,-500.0,0.0005589,120]
[342801723,1732143092123,-962.23,0.0005589,120]
[342801724,1732143092133,-500.0,0.0005589,120]
[342801725,1732143092143,-630.95,0.0005589,120]
[342801726,1732143092152,-500.0,0.0005589,120]
[342801727,1732143092163,-7093.52,0.0005589,120]
[342801728,1732143092173,-1497.99,0.0005589,120]
[342801729,1732143092183,-3030.53,0.0005589,120]
[342801730,1732143092193,-500.0,0.0005589,120]
[342801731,1732143092203,-2002.76,0.0005589,120]
[342801732,1732143092214,-4996.62,0.0005589,120]
[342801733,1732143092224,-1038.47,0.0005589,120]
[342801734,1732143092234,-500.0,0.0005589,120]
[342801735,1732143092244,-3755.03,0.0005589,120]
[342801736,1732143092254,-500.0,0.0005589,120]
[342801737,1732143092263,-500.0,0.0005589,120]
[342801738,1732143092273,-500.33,0.0005589,120]
[342801739,1732143092282,-500.0,0.0005589,120]
[342801740,1732143092292,-619.43,0.0005589,120]
[342801741,1732143092302,-1395.84,0.0005589,120]
[342801742,1732143092311,-6717.87,0.0005589,120]
[342801743,1732143092321,-4210.05,0.0005589,120]
[342801744,1732143092330,-500.0,0.0005589,120]
[342801745,1732143092340,-4619.32,0.0005589,120]
[342801746,1732143092351,-2125.56,0.0005589,120]
[342801747,1732143092361,-500.0,0.0005589,120]
[342801748,1732143092370,-232.74829642,0.0005589,120]
[342801749,1732143092380,-1522.48,0.0005589,120]
[342801750,1732143092390,-500.0,0.0005589,120]
[342801751,1732143092400,-2913.49,0.0005589,120]
[342801752,1732143092411,-500.0,0.0005589,120]
[342801753,1732143092424,-500.0,0.0005589,120]
[342801754,1732143092434,-500.0,0.0005589,120]
[342801755,1732143092444,-6408.58,0.0005589,60]
[342801756,1732143092454,-8536.13,0.0005589,120]
[342801757,1732143092464,-500.0,0.0005589,120]
[342801758,1732143092474,-931.52,0.0005589,120]
[342801759,1732143092484,-5185.83,0.0005589,120]
[342801760,1732143092493,-500.0,0.0005589,120]
[342801761,1732143092503,-873.24,0.0005589,120]
[342801762,1732143092512,-1838.8,0.0005589,120]
[342801763,1732143092522,-500.0,0.0005589,120]
[342801764,1732143092532,-1525.45,0.0005589,120]
[342801765,1732143092542,-1373.0,0.0005589,120]
[342801766,1732143092552,-1659.86,0.0005589,120]
[342801767,1732143092561,-500.0,0.0005589,120]
[342801768,1732143092571,-500.0,0.0005589,120]
[342801769,1732143092581,-5907.77,0.0005589,120]
[342801770,1732143092591,-647.02,0.0005589,120]
[342801771,1732143092601,-1210.69,0.0005589,120]
[342801772,1732143092611,-500.0,0.0005589,120]
[342801773,1732143092621,-500.0,0.0005589,120]
[342801774,1732143092632,-526.64,0.0005589,120]
[342801775,1732143092642,-12504.89,0.0005589,120]
[342801776,1732143092652,-2076.98,0.0005589,120]
[342801777,1732143092662,-1181.36,0.0005589,120]
[342801778,1732143092675,-677.21,0.0005589,120]
[342801779,1732143092684,-2434.04,0.0005589,120]
[342801780,1732143092694,-1109.03,0.0005589,120]
[342801781,1732143092704,-500.0,0.0005589,120]
[342801782,1732143092714,-500.0,0.0005589,120]
[342801783,1732143092723,-1099.32,0.0005589,120]
[342801784,1732143092733,-4681.73,0.0005589,120]
[342801785,1732143092742,-651.95,0.0005589,120]
[342801786,1732143092751,-1502.22,0.0005589,120]
[342801787,1732143092761,-500.0,0.0005589,120]
[342801788,1732143092770,-757.95,0.0005589,120]
[342801789,1732143092779,-500.0,0.0005589,120]
[342801790,1732143092789,-986.66,0.0005589,120]
[342801791,1732143092799,-880.48,0.0005589,120]
[342801792,1732143092809,-500.0,0.0005589,120]
[342801793,1732143092819,-1166.87,0.0005589,120]
[342801794,1732143092830,-1450.31,0.0005589,120]
[342801795,1732143092841,-2144.4,0.0005589,120]
[342801796,1732143092851,-548.14,0.0005589,120]
[342801797,1732143092861,-1032.14,0.0005589,120]
[342801798,1732143092871,-500.0,0.0005589,120]
[342801799,1732143092881,-14474.38,0.0005589,120]
[342801800,1732143092894,-16729.96,0.0005589,120]
[342801801,1732143092904,-500.0,0.0005589,120]
[342801802,1732143092915,-500.0,0.0005589,120]
[342801803,1732143092925,-500.0,0.0005589,120]
[342801804,1732143092937,-500.0,0.0005589,120]
[342801805,1732143092947,-2375.8,0.0005589,120]
[342801806,1732143092960,-500.0,0.0005589,120]
[342801807,1732143092971,-500.0,0.0005589,120]
[342801808,1732143092982,-500.0,0.0005589,120]
[342801809,1732143092992,-533.88,0.0005589,120]
[342801810,1732143093003,-726.78,0.0005589,120]
[342801811,1732143093013,-3517.73,0.0005589,120]
[342801812,1732143093023,-500.0,0.0005589,120]
[342801813,1732143093033,-500.0,0.0005589,120]
[342801814,1732143093045,-500.0,0.0005589,120]
[342801815,1732143093055,-2949.54,0.0005589,120]
[342801816,1732143093065,-500.0,0.0005589,120]
[342801817,1732143093076,-680.36,0.0005589,120]
[342801818,1732143093086,-629.45,0.0005589,120]
[342801819,1732143093097,-500.0,0.0005589,120]
[342801820,1732143093108,-1835.32,0.0005589,120]
[342801821,1732143093119,-500.0,0.0005589,120]
[342801822,1732143093129,-1077.92,0.0005589,120]
[342801823,1732143093140,-567.38,0.0005589,120]
[342801824,1732143093151,-1270.02,0.0005589,120]
[342801825,1732143093162,-1080.78,0.0005589,120]
[342801826,1732143093175,-500.0,0.0005589,120]
[342801827,1732143093186,-500.0,0.0005589,120]
[342801828,1732143093197,-500.0,0.0005589,120]
[342801829,1732143093208,-794.46,0.0005589,120]
[342801830,1732143093218,-836.47,0.0005589,120]
[342801831,1732143093229,-730.91,0.0005589,120]
[342801832,1732143093239,-1006.93,0.0005589,120]
[342801833,1732143093250,-877.06,0.0005589,120]
[342801834,1732143093261,-873.31,0.0005589,120]
[342801835,1732143093272,-500.0,0.0005589,120]
[342801836,1732143093284,-5067.66,0.0005589,120]
[342801837,1732143093296,-897.49,0.0005589,120]
[342801838,1732143093306,-500.0,0.0005589,120]
[342801839,1732143093317,-500.0,0.0005589,120]
[342801840,1732143093327,-500.0,0.0005589,120]
[342801841,1732143093338,-500.0,0.0005589,120]
[342801842,1732143093348,-615.04,0.0005589,120]
[342801843,1732143093358,-1213.36,0.0005589,120]
[342801844,1732143093370,-537.82,0.0005589,120]
[342801845,1732143093380,-500.0,0.0005589,120]
[342801846,1732143093391,-500.0,0.0005589,120]
[342801847,1732143093400,-500.0,0.0005589,120]
[342801848,1732143093411,-500.0,0.0005589,120]
[342801849,1732143093423,-911.56,0.0005589,120]
[342801850,1732143093434,-1001.49,0.0005589,120]
[342801851,1732143093445,-1621.15,0.0005589,120]
[342801852,1732143093455,-1004.9,0.0005589,120]
[342801853,1732143093466,-500.0,0.0005589,120]
[342801854,1732143093477,-1363.03,0.0005589,120]
[342801855,1732143093487,-670.6,0.0005589,120]
[342801856,1732143093498,-4519.72,0.0005589,120]
[342801857,1732143093508,-681.14,0.0005589,120]
[342801858,1732143093519,-597.02,0.0005589,120]
[342801859,1732143093530,-502.04084288,0.0005589,120]
[342801860,1732143093540,-1529.3,0.0005589,120]
[342801861,1732143093551,-151.0,0.0005589,120]
[342801862,1732143093562,-500.0,0.0005589,120]
[342801863,1732143093573,-500.0,0.0005589,120]
[342801864,1732143093583,-500.0,0.0005589,120]
[342801865,1732143093593,-5382.48,0.0005589,120]
[342801866,1732143093603,-2209.36,0.0005589,120]
[342801867,1732143093614,-640.41,0.0005589,120]
[342801868,1732143093890,-1045.28,0.0005589,120]
[342801869,1732143093901,-500.0,0.0005589,120]
[342801870,1732143093912,-151.0,0.0005589,120]
[342801871,1732143093930,-500.0,0.0005589,120]
[342801872,1732143093940,-3525.53,0.0005589,120]
[342801873,1732143093950,-5113.62,0.0005589,120]
[342801874,1732143093962,-500.0,0.0005589,120]
[342801875,1732143093972,-5128.91,0.0005589,120]
[342801876,1732143093981,-909.91,0.0005589,120]
[342801877,1732143093991,-500.0,0.0005589,120]
[342801878,1732143094002,-1800.0,0.00056,57]
[342801879,1732143094012,-20000.0,0.00056,120]
[342801880,1732143094022,-204.0,0.0005603,30]
[342801881,1732143094032,-505.88395649,0.00056164,120]
[342801882,1732143094042,-500.0,0.00056164,120]
[342801883,1732143094051,-500.0,0.00056164,120]
[342801884,1732143094061,-500.0,0.00056164,120]
[342801885,1732143094071,-500.0,0.00056164,120]
[342801886,1732143094081,-500.0,0.00056164,120]
[342801887,1732143094091,-949.28,0.00056164,120]
[342801888,1732143094100,-588.18,0.00056164,120]
[342801889,1732143094111,-500.0,0.00056164,120]
[342801890,1732143094121,-500.0,0.00056164,120]
[342801891,1732143094131,-500.0,0.00056164,120]
[342801892,1732143094141,-500.0,0.00056164,120]
[342801893,1732143094151,-216.87,0.00056164,7]
[342801894,1732143094161,-500.0,0.00056164,120]
[342801895,1732143094174,-1647.84,0.00056164,120]
[342801896,1732143094184,-500.0,0.00056164,120]
[342801897,1732143094195,-672.22,0.00056164,120]
[342801898,1732143094204,-901.77,0.00056164,120]
[342801899,1732143094215,-500.0,0.00056164,120]
[342801900,1732143094224,-749.97,0.00056164,120]
[342801901,1732143094235,-500.0,0.00056164,120]
[342801902,1732143094244,-1584.28,0.00056164,120]
[342801903,1732143094254,-500.0,0.00056164,120]
[342801904,1732143094263,-500.0,0.00056164,120]
[342801905,1732143094272,-500.0,0.00056164,120]
[342801906,1732143094282,-698.15,0.00056164,120]
[342801907,1732143094293,-500.0,0.00056164,120]
[342801908,1732143094302,-500.0,0.00056164,120]
[342801909,1732143094312,-500.0,0.00056164,120]
[342801910,1732143094322,-500.0,0.00056164,120]
[342801911,1732143094332,-500.0,0.00056164,120]
[342801912,1732143094342,-649.34488088,0.00056164,120]
[342801913,1732143094352,-500.0,0.00056164,120]
[342801914,1732143094362,-500.0,0.00056164,120]
[342801915,1732143094371,-550.21,0.00056164,120]
[342801916,1732143094381,-2000.0,0.00056164,30]
[342801917,1732143094391,-838.1,0.00056164,120]
[342801918,1732143094402,-500.0,0.00056164,120]
[342801919,1732143094411,-500.0,0.00056164,120]
[342801920,1732143094422,-678.26,0.00056164,120]
[342801921,1732143094432,-150.4,0.00056164,120]
[342801922,1732143094442,-500.0,0.00056164,120]
[342801923,1732143094452,-528.71,0.00056164,120]
[342801924,1732143094462,-577.89,0.00056164,120]
[342801925,1732143094472,-1058.89,0.00056164,120]
[342801926,1732143094482,-500.0,0.00056164,120]
[342801927,1732143094493,-500.0,0.00056164,120]
[342801928,1732143094503,-516.05,0.00056164,120]
[342801929,1732143094513,-500.0,0.00056164,120]
[342801930,1732143094524,-500.0,0.00056164,120]
[342801931,1732143094534,-1582.8,0.00056164,120]
[342801932,1732143094544,-512.91,0.00056164,120]
[342801933,1732143094554,-910.7,0.00056164,120]
[342801934,1732143094564,-500.0,0.00056164,120]
[342801935,1732143094573,-686.07,0.00056164,120]
[342801936,1732143094583,-500.0,0.00056164,120]
[342801937,1732143094593,-718.84,0.00056164,120]
[342801938,1732143094603,-500.0,0.00056164,120]
[342801939,1732143094612,-566.64,0.00056164,120]
[342801940,1732143094622,-500.0,0.00056164,120]
[342801941,1732143094631,-581.13,0.00056164,120]
[342801942,1732143094641,-558.19,0.00056164,120]
[342801943,1732143094650,-1275.31,0.00056164,120]
[342801944,1732143094659,-500.0,0.00056164,120]
[342801945,1732143094670,-500.0,0.00056164,120]
[342801946,1732143094679,-500.0,0.00056164,120]
[342801947,1732143094688,-646.55,0.00056164,120]
[342801948,1732143094698,-500.0,0.00056164,120]
[342801949,1732143094707,-889.52,0.00056164,120]
[342801950,1732143094718,-500.0,0.00056164,120]
[342801951,1732143094728,-1844.67,0.00056164,120]
[342801952,1732143094738,-1345.16,0.00056164,120]
[342801953,1732143094747,-500.0,0.00056164,120]
[342801954,1732143094756,-256.51246958,0.00056164,120]
[342801955,1732143094765,-1354.36,0.00056164,120]
[342801956,1732143094775,-500.0,0.00056164,120]
[342801957,1732143094784,-500.0,0.00056164,120]
[342801958,1732143094794,-500.0,0.00056164,120]
[342801959,1732143094803,-1126.54,0.00056164,120]
[342801960,1732143094813,-810.54,0.00056164,120]
[342801961,1732143094822,-1630.49,0.00056164,120]
[342801962,1732143094831,-500.0,0.00056164,120]
[342801963,1732143094841,-1061.11,0.00056164,120]
[342801964,1732143094850,-1539.37,0.00056164,120]
[342801965,1732143094859,-500.0,0.00056164,120]
[342801966,1732143094869,-500.0,0.00056164,120]
[342801967,1732143094879,-616.53,0.00056164,120]
[342801968,1732143094892,-500.0,0.00056164,120]
[342801969,1732143094902,-1163.7,0.00056164,120]
[342801970,1732143094911,-500.0,0.00056164,120]
[342801971,1732143094922,-500.0,0.00056164,120]
[342801972,1732143094932,-1697.48,0.00056164,120]
[342801973,1732143094942,-500.0,0.00056164,120]
[342801974,1732143094952,-768.83,0.00056164,120]
[342801975,1732143094962,-584.6063819,0.00056164,120]
[342801976,1732143094977,-1494.04,0.00056164,120]
[342801977,1732143094988,-583.76,0.00056164,120]
[342801978,1732143094998,-500.0,0.00056164,120]
[342801979,1732143095007,-500.0,0.00056164,120]
[342801980,1732143095017,-500.0,0.00056164,120]
[342801981,1732143095026,-500.0,0.00056164,120]
[342801982,1732143095035,-1417.12,0.00056164,120]
[342801983,1732143095044,-500.0,0.00056164,120]
[342801984,1732143095054,-500.0,0.00056164,120]
[342801985,1732143095064,-514.86,0.00056164,120]
[342801986,1732143095073,-580.28,0.00056164,120]
[342801987,1732143095082,-500.0,0.00056164,120]
[342801988,1732143095092,-500.0,0.00056164,120]
[342801989,1732143095101,-172.71203819,0.00056164,120]
[342801990,1732143095111,-500.0,0.00056164,120]
[342801991,1732143095121,-500.0,0.00056164,120]
[342801992,1732143095130,-625.85,0.00056164,120]
[342801993,1732143095140,-500.0,0.00056164,120]
[342801994,1732143095150,-835.63,0.00056164,120]
[342801995,1732143095161,-500.0,0.00056164,120]
[342801996,1732143095172,-1642.42,0.00056164,7]
[342801997,1732143095182,-500.0,0.00056164,120]
[342801998,1732143095192,-1168.69,0.00056164,120]
[342801999,1732143095202,-500.0,0.00056164,14]
[342802000,1732143095212,-500.0,0.00056164,120]
[342802001,1732143095222,-785.67,0.00056164,120]
[342802002,1732143095231,-526.48,0.00056164,120]
[342802003,1732143095241,-634.92723278,0.00056164,120]
[342802004,1732143095250,-1791.8,0.00056164,120]
[342802005,1732143095260,-500.0,0.00056164,120]
[342802006,1732143095269,-500.0,0.00056164,120]
[342802007,1732143095278,-500.0,0.00056164,120]
[342802008,1732143095288,-500.0,0.00056164,30]
[342802009,1732143095297,-500.0,0.00056164,120]
[342802010,1732143095308,-500.0,0.00056164,120]
[342802011,1732143095317,-500.0,0.00056164,120]
[342802012,1732143095327,-764.29,0.00056164,120]
[342802013,1732143095337,-937.69,0.00056164,120]
[342802014,1732143095348,-830.14,0.00056164,120]
[342802015,1732143095358,-500.0,0.00056164,58]